Cogmind - Beta 17 @@@ ROGUE MODE // 2026.07.17 @ 18:16:06 Player: Suffixing Result: Destroyed by Autobeam Turret with Autobeam Performance ------------- Evolutions (0) 0 Regions Visited (2) 400 Robots Destroyed (26) 130 Value Destroyed (514) 514 Prototype IDs (0) 0 Alien Tech Used (0) 0 Bonus (0) 0 TOTAL SCORE: 1044 Bonus ------- None Cogmind --------- Core Integrity 0/250 Matter 245/300 Energy 100/100 System Corruption 0% Temperature Cool (6) Movement Treading (260) Ox1 Location -10/Subcaves Parts ------- > --- POWER (1) -------- (None) > --- PROPULSION (2) --- Spiked Treads > --- UTILITY (2) ------ Large Storage Unit Makeshift Light Armor Plating > --- WEAPON (2) ------- Rocket Launcher > --- INVENTORY (15) --- Light Ion Engine Light Treads Armored Wheel Heat Sink Subdweller Optics Scrap Shield Spread Laser Spread Laser Spread Laser Assault Rifle Light Assault Rifle Slug Cannon Heavy Hammer Peak State ------------ > --- POWER ------------ Ion Engine > --- PROPULSION ------- Light Treads Spiked Treads > --- UTILITY ---------- Large Storage Unit Makeshift Light Armor Plating > --- WEAPON ----------- Spread Laser Heavy Hammer > --- INVENTORY -------- Light Ion Engine Light Treads Armored Wheel Heat Sink Subdweller Optics Scrap Shield Spread Laser Spread Laser Spread Laser Assault Rifle Light Assault Rifle Slug Cannon Rocket Launcher [Rating: 15] Favorites ----------- Power Ion Engine Engine Ion Engine Propulsion Light Treads Treads Light Treads Leg Aluminum Leg Utility Large Storage Unit Device Heat Sink Storage Large Storage Unit Protection Makeshift Light Armor Plating Weapon Spread Laser Energy Gun Spread Laser Ballistic Gun Assault Rifle Launcher Rocket Launcher Impact Weapon Heavy Hammer Build | -11 -10 -10 ------- Run | Yrd Mat Sub Slots Evolved . | . . . Power . | . . . Propulsion . | . . . Utility . | . . . Weapon . | . . . Parts Attached 11 | 2 5 4 Power . | . . . Engine . | . . . Core . | . . . Reactor . | . . . Propulsion 4 | 2 . 2 Treads 4 | 2 . 2 Leg . | . . . Wheel . | . . . Hover . | . . . Flight . | . . . Utility 3 | . 2 1 Device 1 | . 1 . Storage 1 | . 1 . Processor . | . . . Hackware . | . . . Protection 1 | . . 1 Artifact . | . . . Weapon 4 | . 3 1 Energy Gun 2 | . 2 . Energy Cannon . | . . . Ballistic Gun . | . . . Ballistic Cannon . | . . . Launcher 1 | . . 1 Special Weapon . | . . . Impact Weapon 1 | . 1 . Slashing Weapon . | . . . Piercing Weapon . | . . . Special Melee Weapon . | . . . Unidentified Prototypes . | . . . Parts Lost 5 | . . 5 Power 1 | . . 1 Propulsion 3 | . . 3 Utility . | . . . Weapon 1 | . . 1 Highest Loss Streak 2 | . . 2 To Critical Strikes . | . . . Average Backups 10 | 4 9 12 Power 1 | 1 1 1 Propulsion 2 | 2 2 2 Utility . | . . 1 Weapon 6 | 1 6 7 Tool/Special . | . . . Unused Backups 14 | . 2 12 Power 3 | . 1 2 Propulsion 3 | . 1 2 Utility 2 | . . 2 Weapon 6 | . . 6 Tool/Special . | . . . Average Slot Usage (%) 91 | . 90 94 Engine 13 | . 14 13 Treads 27 | . 28 27 Device 4 | . 4 3 Storage 14 | . 14 14 Protection 3 | . . 10 Energy Gun 17 | . 20 12 Ballistic Gun 3 | . 5 . Impact Weapon 5 | . 2 10 Peak Build Rating 15 | 6 10 15 Average Rating 10 | 6 8 12 On Entrance 7 | 6 6 10 Avg Prop Armor Cover (%) . | . . . Naked Turns . | . . . Heaviest Build 35 | 13 32 35 Greatest Support 40 | 40 40 40 Greatest Overweight (x) 1 | . . 1 Average Overweight (x) . | . . . Largest Inventory Capacity 15 | 8 15 15 Average Capacity 14 | 8 13 15 Most Carried 15 | 6 12 15 Average Carried 10 | 3 9 12 Final Capacity 15 | 8 15 15 Final Carried 14 | 3 11 14 Class Distribution -------------------- 100% | Mutant Dominant Class ---------------- Mutant | -10/Materials Mutant | -10/Subcaves Resources | -11 -10 -10 ----------- Run | Yrd Mat Sub Matter Collected 321 | 220 66 35 Remotely . | . . . Salvage Created 502 | . 337 165 Parts 43 | . 36 7 Haulers Intercepted 2 | . 2 . Recyclers Shooed . | . . . Parts Field Recycled . | . . . Retrieved Matter . | . . . Parts Self-Destructed 4 | . . 4 Prevented . | . . . Parts Restored . | . . . Kills | -11 -10 -10 ------- Run | Yrd Mat Sub Combat Hostiles Destroyed 24 | . 16 8 Guns 18 | . 16 2 AOE 3 | . . 3 Classes Destroyed 5 | . 3 2 Hauler 2 | . 2 . Swarmer 14 | . 11 3 Grunt 5 | . 5 . Artisan 1 | . . 1 Subdweller 5 | . . 5 Best Kill Streak 3 | . 3 3 Combat Bots Only 3 | . 3 3 Max Kills in Single Turn 2 | . 2 2 Gunslinging 1 | . 1 . Exploded 2 | . . 2 Melee . | . . . Uniques/NPCs Destroyed . | . . . Combat | -11 -10 -10 -------- Run | Yrd Mat Sub Hostile Shots Fired 117 | . 65 52 Missed 31 | . 13 18 Hits 86 | . 52 34 Projectile 86 | . 52 34 AOE 3 | . . 3 Damage Taken 1098 | . 493 605 Core 257 | . 128 129 Absorbed by Shields . | . . . Core Remaining (%) 100 | 100 . . Volleys Fired 45 | . 32 13 Largest 2 | . 2 2 Hottest 130 | . 130 130 Shots Fired 85 | . 64 21 Gun 80 | . 64 16 Cannon . | . . . Launcher 5 | . . 5 Special . | . . . Kinetic 8 | . 8 . Thermal 72 | . 56 16 Explosive 5 | . . 5 Electromagnetic . | . . . Robot Hit Streak 9 | . 9 9 Robot Miss Streak 14 | . 14 4 Penetration Max . | . . . Secondary Targets 2 | . 2 . Max Gunslinging Chain 1 | . 1 . Shots Hit Robots 73 | . 49 24 Core Hits 72 | . 55 17 Critical Kills . | . . . Critical Parts Destroyed 2 | . . 2 Critical Strikes 2 | . . 2 Smash 2 | . . 2 Melee Attacks 24 | . . 24 Impact 24 | . . 24 Slashing . | . . . Piercing . | . . . Sneak Attacks 2 | . . 2 Combat Hostiles . | . . . Follow-up Attacks . | . . . Damage Inflicted 1510 | . 602 908 Guns 824 | . 589 235 Cannons . | . . . Explosions 291 | . . 291 Melee 382 | . . 382 Ramming 13 | . 13 . Kinetic 45 | . 45 . Thermal 779 | . 544 235 Explosive 291 | . . 291 Electromagnetic . | . . . Impact 382 | . . 382 Slashing . | . . . Piercing . | . . . Highest Corruption . | . . . Average Corruption . | . . . Corruption Purged . | . . . Corruption Blocked . | . . . Overload Shots . | . . . Overflow Damage 136 | . . 136 Projectiles . | . . . Explosions 8 | . . 8 Melee 128 | . . 128 Knockbacks 2 | . . 2 Impact 2 | . . 2 Kinetic . | . . . Secondary . | . . . Self-Inflicted Damage 39 | . . 39 Shots 1 | . . 1 Rammed 4 | . 4 . Targets Rammed 4 | . 4 . Kicked . | . . . Crushed . | . . . Highest Temperature 276 | . 276 . Average Temperature 109 | . 109 . Received Heat Transfer 186 | . 66 120 Effects 5 | . 5 . Interference 5 | . 5 . Siege Activations . | . . . Martial Activations . | . . . Shielding Activations . | . . . Robots Disrupted . | . . . Combat Hostiles . | . . . Robots Corrupted 3 | . . 3 Combat Hostiles 3 | . . 3 Parts Fried 3 | . . 3 Impact Corruptions 5 | . . 5 Robots Melted . | . . . Combat Hostiles . | . . . Parts Melted 1 | . . 1 Heat Transferred 990 | . 695 295 Parts Sabotaged . | . . . Parts Stolen . | . . . Parts Stripped . | . . . Power Chain Reactions . | . . . Alert | -11 -10 -10 ------- Run | Yrd Mat Sub Maximum Alert Level . | . . . Low Security (%) 100 | 100 100 . Level 1 . | . . . Level 2 . | . . . Level 3 . | . . . Level 4 . | . . . Level 5 . | . . . High Security . | . . . Max Security . | . . . Peak Influence 134 | . 134 . Initial . | . . . Average 46 | . 46 . Influence Increases 569 | . 419 150 Destroy 0b10 Robot/C 380 | . 320 60 Destroy 0b10 Robot/NC 10 | . 10 . Destroy Leader 74 | . 74 . Partial Spotted 15 | . 15 . Lose Combat Pursuer 90 | . . 90 Influence Decreases 453 | . 402 51 Entered New Map 9 | . . 9 Time Decay 424 | . 402 22 Lost Part 20 | . . 20 Squads Dispatched 3 | . 3 . Investigation 1 | . 1 . Extermination . | . . . Reinforcement 2 | . 2 . Assault . | . . . Garrison . | . . . Intercept . | . . . Searches Triggered . | . . . Construction Impeded . | . . . Haulers Reinforced . | . . . Active Scanning Responses . | . . . Cargo Convoy Interrupts . | . . . Stealth | -11 -10 -10 --------- Run | Yrd Mat Sub Distress Signals 2 | . 2 . Communications Jammed . | . . . Distress Signals . | . . . Times Spotted 47 | . 36 11 Peak Tracking Total 5 | . 5 4 Tactical Retreats 2 | . . 2 Traps | -11 -10 -10 ------- Run | Yrd Mat Sub Traps Triggered 1 | . 1 . Indirectly . | . . . Trap Hack Attempts . | . . . Triggered . | . . . Disarmed . | . . . Reprogrammed . | . . . Reused . | . . . Traps Extracted . | . . . Installed . | . . . Triggered . | . . . Machines | -11 -10 -10 ---------- Run | Yrd Mat Sub Machines Disabled 1 | . . 1 Max in Single Turn 1 | . . 1 Machines Repaired . | . . . Machines Dismantled . | . . . Machines Sabotaged . | . . . Overloaded Fab Kills . | . . . Hacking | -11 -10 -10 --------- Run | Yrd Mat Sub Machines Accessed 3 | . 2 1 Terminals 1 | . 1 . Fabricators . | . . . Repair Stations 1 | . 1 . Recycling Units . | . . . Scanalyzers . | . . . Garrison Access . | . . . Total Hacks 11 | . 7 4 Successful 4 | . . 4 Failed 7 | . 7 . Catastrophic 1 | . 1 . Database Lockouts . | . . . Manual . | . . . Terminals 2 | . 2 . Fabricators . | . . . Repair Stations 5 | . 5 . Recycling Units . | . . . Scanalyzers . | . . . Garrison Access . | . . . Terminal Hacks 4 | . . 4 Record 4 | . . 4 Fabricator Hacks . | . . . Repair Station Hacks . | . . . Recycling Unit Hacks . | . . . Scanalyzer . | . . . Garrison Access Hacks . | . . . Unauthorized Hacks . | . . . Terminals . | . . . Fabricators . | . . . Repair Stations . | . . . Recycling Units . | . . . Scanalyzers . | . . . Garrison Access . | . . . Data Cores Recovered . | . . . Used . | . . . Hacking Detections 2 | . 2 . Full Trace Events 1 | . 1 . Feedback Events . | . . . Feedback Blocked . | . . . Robot Schematics Acquired . | . . . Robots Built . | . . . Authchips . | . . . Time . | . . . Total Robot Build Rating . | . . . Part Schematics Acquired . | . . . Parts Built . | . . . Authchips . | . . . Time . | . . . Total Part Build Rating . | . . . Part Studies Acquired . | . . . Parts Repaired . | . . . Time . | . . . Parts Recycled . | . . . Recycled Matter . | . . . Retrieved Matter . | . . . Retrieved Components . | . . . Parts Scanalyzed . | . . . Part Schematics Acquired . | . . . Parts Damaged . | . . . Bothacking | -11 -10 -10 ------------ Run | Yrd Mat Sub Used RIF Installer . | . . . Robots Hacked . | . . . Non-combat . | . . . Combat . | . . . Robot Hacks Applied . | . . . Relay Couplers Released . | . . . Fabnet Peak Effective % . | . . . Robots Rewired . | . . . Allies Hacked . | . . . Hacks Repelled . | . . . Allies | -11 -10 -10 -------- Run | Yrd Mat Sub Total Allies . | . . . Largest Group . | . . . Highest-Rated Group . | . . . Highest-Rated Ally . | . . . Total Orders . | . . . Ally Attacks . | . . . Total Damage . | . . . Kills . | . . . Allies Corrupted . | . . . Allies Melted . | . . . Intel | -11 -10 -10 ------- Run | Yrd Mat Sub Active Infowar (turns) . | . . . Robot Analysis Total . | . . . Derelict Logs Recovered 2 | . . 2 Drone Launches . | . . . Drone Recoveries . | . . . Exploration | -11 -10 -10 ------------- Run | Yrd Mat Sub Turns Passed 2389 | 15 1573 801 Spaces Moved 1119 | 7 701 411 Core . | . . . Treads 1119 | 7 701 411 Legs . | . . . Wheels . | . . . Hover . | . . . Flight . | . . . Fastest Speed 160 | 160 160 160 Average Speed 160 | 160 160 162 Slowest Speed 260 | 160 160 260 Overloaded Moves . | . . . Propulsion Burnouts . | . . . Robots Hopped . | . . . Potential Cave-ins . | . . . Cave-ins Triggered . | . . . Exploration Rate (%) 44 | 2 94 36 Regions Visited 2 Branch Regions 1 Pre-discovered Areas 1 | . . 1 Known Exits Taken . | . . . Unknown Exits Taken 2 | 1 1 . Scrap Searched 2 | . . 2 Spaces Dug . | . . . Terrain Destroyed 29 | . . 29 Melee . | . . . Projectile . | . . . AOE 29 | . . 29 Terrain Rammed . | . . . Walls Destroyed . | . . . Machines Disabled . | . . . Actions | -11 -10 -10 --------- Run | Yrd Mat Sub Total 1578 | 11 1087 480 Wait 355 | . 334 21 Move 1117 | 6 700 411 Hop . | . . . Pick Up 15 | . 10 5 Fast Attach 1 | . 1 . Attach 3 | . 1 2 Detach . | . . . Swap 8 | 2 3 3 Drop 6 | 3 2 1 Fire 45 | . 32 13 Melee 24 | . . 24 Ram . | . . . Kick . | . . . Crush 4 | . 4 . Escape Stasis . | . . . Rewire . | . . . Trap . | . . . Miscellaneous . | . . . Route ------- -11/Scrapyard -10/Materials (discovered 6 exits: [*Mat x3] / [*Min x2] / *Sub) -10/Subcaves (discovered 3 exits: Mat x2 / [Rec]) History --------- Turn | Location | Event 6 | -11/Scrapyard | Discovered new exit (range 3) 16 | -11/Scrapyard | Entered Materials 192 | -10/Materials | Discovered new exit (range 11) 307 | -10/Materials | Build established: Mutant 409 | -10/Materials | Discovered new exit (range 13) 498 | -10/Materials | Discovered new exit (range 15) 602 | -10/Materials | Core integrity fell below 50% 954 | -10/Materials | Discovered new exit (range 11) 1196 | -10/Materials | Discovered new exit (range 3) 1574 | -10/Materials | Discovered new exit (range 4) 1589 | -10/Materials | Entered Subcaves 1589 | -10/Subcaves | Discovered new exit (range 14) 1613 | -10/Subcaves | Visited Clippyterm 1618 | -10/Subcaves | Identified exit to Materials 1618 | -10/Subcaves | Learned Factory emergency access door positions 1641 | -10/Subcaves | Learned 4 Materials zone layouts 1713 | -10/Subcaves | Shifting Twisted Machinery released Sub. Optics 1751 | -10/Subcaves | Shifting Twisted Machinery released Flamer 1809 | -10/Subcaves | Shifting Twisted Machinery released Sub. Laser 1810 | -10/Subcaves | Shifting Twisted Machinery released Mak. Light Armor Plating 2053 | -10/Subcaves | Learned location of Zion (-7) 2127 | -10/Subcaves | Core integrity fell below 20% 2390 | -10/Subcaves | Destroyed by Autobeam Turret with Autobeam Last Messages --------------- 02335_ 2T-9FJ(R) suffers critical hit (Smash). 02335_ Destroyed Sub. Power Source. 02335_ 2T-9FJ(R) system corrupted by crushing effect. 02336_ 2T-9FJ(R) system terminally corrupted. 02336_ Sub. Machine Gun fried. 02336_ Sub. Monowheel fried. 02365_ S-10 Pest destroyed. 02365_ Destroyed Lgt. Ion Engine. 02367_ S-10 Pest destroyed. 02369_ Lgt. Ion Engine fries itself beyond repair. 02369_ S-10 Pest destroyed. 02369_ Lgt. Treads destroyed. 02369_ Ion Engine destroyed. 02373_ Flight Unit fries itself beyond repair. 02375_ Subatomizers dissect the Flight Unit. 02377_ Lgt. Ion Engine fries itself beyond repair. 02383_ Flight Unit fries itself beyond repair. Map ----- +----------------------------------------------------+ | ?????????????????????????????????????????????## | | ?????????????????????????????????????????????# | | ?????????????????????????????????????????????# | | ?????????????????????????????????????????????# # | | ????????????????????????????????????????????## # | | ????????????????????????????????????????????? # | | ????????????????????????????????????????????? " | | ?????????????????????#######??????????????????"" " | | ?????????????????????#"""""#?????????????????? ""# | | ?????????????????????#" X""#??????????????????# "# | | ?????????????????????#" "#?????????????????## "" | | ?????????????????????##" """??????????????#### "# | | ?????????????????????#"" "" #?????????????# " | | ?????????????????????" ""###???????????# " | | ??????????????### ###" ##########??# # | | ??????????????# % #??## # | | ??????????? ##??# | | ??????????? %%# ""% #??# | | ???????????##### ## #?### ##### | | ??????????????## %???## ;# ## | | ????????????### ???# &% # | | ??????????? ????# # % & # | | ??????????? #### ] # | | ??????????? = # ##### | | ??????????????# ### # ######???## | | ??????????????##??## @ #####?????????#### | | ???????????????????### #????????????????? | | ?????????????????????### ### "#?????? | | ???????????????????????# ""??????? | | ???????????????????????# <#????? | | ??????????????????? ""#?????? | | ?????????????????# # "#?????? | | ?????????????????##### ###?? "#?????? | | ?????????????????????# #????? """??????? | | ???????????????????? ##???????#???????? | | ???????????????????##% % #????????????????? | | ????????????????????# % ## ###????????????????? | | ???????????????????# ###?####??????????????????? | | ???????????????????####??????????????????????????? | | ?????????????????????????????????????????????????? | | ?????????????????????????????????????????????????? | | ?????????????????????????????????????????????????? | | ?????????????????????????????????????????????????? | | ?????????????????????????????????????????????????? | | ?????????????????????????????????????????????????? | | ?????????????????????????????????????????????????? | | ?????????????????????????????????????????????????? | | ?????????????????????????????????????????????????? | | ?????????????????????????????????????????????????? | | ?????????????????????????????????????????????????? | +----------------------------------------------------+ Best States ------------- Heat Dissipation 35 Energy Generation 10 Energy Capacity 250 Matter Stores 300 Matter Capacity 300 Sight Range 16 Terrain Scan Density 10 Armor Coverage 100 Evasion (%) 40 Recoil Reduction 2 Item Schematics ----------------- None Robot Schematics ------------------ None Fabricated ------------ Nothing Repaired ---------- Nothing Studied --------- None Alien Tech Used ----------------- None Achievements -------------- None Challenges ------------ None Game ------ Seed InsulatedIntegratedRipper Manual? 0 Play Time 00:13:34 Cumulative 53.1 hours Start 2026.07.17 @ 18:06:23 End 2026.07.17 @ 18:16:06 Sessions 1 Manual Loads 0 Difficulty Rogue Special Mode None Game No. 234 Rogue 189 Adventurer 45 Explorer 0 Win Type - Total 1 Types 1/0/0/0/0/0/0/0/0/0 Lore% 63 Gallery% 42 Achievement% 38 Wizard Run 0 Options --------- Layout 1 ASCII 0 Keyboard 0 Movement Numpad Keybinds 0 Fullscreen 1 Font 24/Smallcaps Map View 50x35 Zoom Use 0% Tactical HUD 1 Map Filters NONE Filters NONE Steam 1 RUN: 322c6697-3862-4d55-afd9-56cab26aad81